Workbook

Sheet Modelo TR Derivada
A5: MODELO - Deve ser adaptado utilizando os valores, taxas e prazos do contrato
A7: Valores em R$
A8: Liberação
A9: Data | B9: Valor (R$)
A10: 2025-08-08 | B10: 20000000
A13: Valores em R$
A14: Data de Vencimento | B14: TR | G14: Índice de Atualização | H14: Principal Atualizado | I14: Juros Compensatórios (1) | L14: Parcelas Restantes | M14: Amortização (2) | N14: Prestação | O14: Outros Eventos
B15: Data ref. | C15: % a.m. * | D15: Data início | E15: Data fim | F15: dias corridos no mês | I15: Spread BNDES % a.a. | J15: Dias | K15: Juros Compensatórios | O15: Taxa Flat (3) | P15: Remuneração (4) | Q15: Total Outros Eventos
A18: 2025-09-01 | B18: 2025-07-01 | C18: 0.1758 | D18: 2025-08-01 | E18: 2025-09-01 | F18: =E18-D18 -> 31 | G18: =ROUND((1+C18%)^((A18-A10)/F18),15) -> 1.001360762 | H18: =round_to_even(B10*G18,15) -> 20027215.25 | I18: 2.7 | J18: =A18-A10 -> 24 | K18: =round_to_even((B10)*ROUND(G18*((1+$I18%)^(J18/365)),15)-H18,15) -> 35114.38728
A19: 2025-09-15 | B19: 2025-08-01 | C19: 0.1722 | D19: =E18 -> 2025-09-01 | E19: 2025-10-01 | F19: =E19-D19 -> 30 | G19: =ROUND((1+C19%)^((A19-A18)/F19),15) -> 1.000803231 | H19: =round_to_even((H18-M18)*ROUND(G19,15),2) -> 20043301.73 | I19: =I18 -> 2.7 | J19: =A19-A18 -> 14 | K19: =round_to_even((H18-M18+K18)*ROUND(G19*((1+$I19%)^(J19/365)),15)-H19,2) -> 55670.89 | O19: ='Taxa Flat'!D7 -> 4849.2 | P19: ='Taxa Flat'!D8 -> 69.99 | Q19: =O19+P19 -> 4919.19
A20: 2025-10-01 | B20: 2025-08-01 | C20: =C19 -> 0.1722 | D20: 2025-09-01 | E20: 2025-10-01 | F20: =E20-D20 -> 30 | G20: 1.000918031 | H20: =round_to_even((H19-M19)*ROUND(G20,15),2) -> 20061702.11 | I20: 2.7 | J20: 16 | K20: =round_to_even((H19-M19+K19)*ROUND(G20*((1+$I20%)^(J20/365)),15)-H20,2) -> 79230.17
A21: 2025-10-15 | B21: 2025-09-01 | C21: 0.1742 | D21: =E20 -> 2025-10-01 | E21: 2025-11-01 | F21: =E21-D21 -> 31 | G21: =ROUND((1+C21%)^((A21-A20)/F21),15) -> 1.000786334 | H21: =round_to_even((H20-M20)*ROUND(G21,15),2) -> 20077477.31 | I21: 2.7 | J21: 14 | K21: =round_to_even((H20-M20+K20)*ROUND(G21*((1+$I21%)^(J21/365)),15)-H21,2) -> 99900.85
A22: 2025-11-01 | B22: 2025-09-01 | C22: =C21 -> 0.1742 | D22: 2025-10-01 | E22: 2025-11-01 | F22: =E22-D22 -> 31 | G22: 1.000954915 | H22: =round_to_even((H21-M21)*ROUND(G22,15),2) -> 20096649.59 | I22: 2.7 | J22: 17 | K22: =round_to_even((H21-M21+K21)*ROUND(G22*((1+$I22%)^(J22/365)),15)-H22,2) -> 125072.95
A23: 2025-11-17 | B23: 2025-10-01 | C23: 0.1758 | D23: =E22 -> 2025-11-01 | E23: 2025-12-01 | F23: =E23-D23 -> 30 | G23: 1.000937216 | H23: =round_to_even((H22-M22)*ROUND(G23,15),2) -> 20115484.49 | I23: 2.7 | J23: =A23-A22 -> 16 | K23: =round_to_even((H22-M22+K22)*ROUND(G23*((1+$I23%)^(J23/365)),15)-H23,2) -> 148842.36 | N23: =K23+M23 -> 148842.36
A24: 2025-12-01 | B24: 2025-10-01 | C24: =C23 -> 0.1758 | D24: 2025-11-01 | E24: 2025-12-01 | F24: =E24-D24 -> 30 | G24: 1.000820016 | H24: =round_to_even(H23*G24,15) -> 20131979.5 | I24: 2.7 | J24: 14 | K24: =round_to_even((H23)*ROUND(G24*((1+$I24%)^(J24/365)),15)-H24,15) -> 20583.0281
A25: 2025-12-15 | B25: 2025-11-01 | C25: 0.1634 | D25: =E24 -> 2025-12-01 | E25: 2026-01-01 | F25: =E25-D25 -> 31 | G25: 1.000737605 | H25: =round_to_even((H24-M24)*ROUND(G25,15),2) -> 20146828.96 | I25: 2.7 | J25: 14 | K25: =round_to_even((H24-M24+K24)*ROUND(G25*((1+$I25%)^(J25/365)),15)-H25,2) -> 41217.48
A26: 2026-01-01 | B26: 2025-11-01 | C26: =C25 -> 0.1634 | D26: 2025-12-01 | E26: 2026-01-01 | F26: =E26-D26 -> 31 | G26: =ROUND((1+C26%)^((A26-A25)/F26),15) -> 1.000895734 | H26: =round_to_even((H25-M25)*ROUND(G26,15),2) -> 20164875.16 | I26: 2.7 | J26: 17 | K26: =round_to_even((H25-M25+K25)*ROUND(G26*((1+$I26%)^(J26/365)),15)-H26,2) -> 66342.88
A27: 2026-01-15 | B27: 2025-12-01 | C27: 0.1742 | D27: 2026-01-01 | E27: 2026-02-01 | F27: =E27-D27 -> 31 | G27: 1.000786334 | H27: =round_to_even((H26-M26)*ROUND(G27,15),2) -> 20180731.49 | I27: 2.7 | J27: 14 | K27: =round_to_even((H26-M26+K26)*ROUND(G27*((1+$I27%)^(J27/366)),15)-H27,2) -> 87039.22
A28: 2026-02-01 | B28: 2025-12-01 | C28: =C27 -> 0.1742 | D28: 2026-01-01 | E28: 2026-02-01 | F28: =E28-D28 -> 31 | G28: 1.000954915 | H28: =round_to_even((H27-M27)*ROUND(G28,15),2) -> 20200002.37 | I28: 2.7 | J28: 17 | K28: =round_to_even((H27-M27+K27)*ROUND(G28*((1+$I28%)^(J28/366)),15)-H28,2) -> 112242.52
A29: 2026-02-18 | B29: 2026-01-01 | C29: 0.1718 | D29: =E28 -> 2026-02-01 | E29: 2026-03-01 | F29: =E29-D29 -> 28 | G29: 1.00104272 | H29: =round_to_even((H28-M28)*ROUND(G29,15),2) -> 20221065.31 | I29: 2.7 | J29: =A29-A28 -> 17 | K29: =round_to_even((H28-M28+K28)*ROUND(G29*((1+$I29%)^(J29/366)),15)-H29,2) -> 137537.07 | L29: 10 | M29: =round_to_even(H29/L29,2) -> 2022106.53 | N29: =K29+M29 -> 2159643.6
A30: continua...
A32: * Disponível em Moedas Contratuais, no site do BNDES, cód TR (Cód: 200). Se a taxa vigente para o período de cálculo ainda não tiver sido divulgada, o sistema projeta utilizando a última disponível.
A34: FÓRMULAS DE CÁLCULO
A36: (1) Juros Compensatórios
B38: arredondamento em 15 casas decimais | D38: arredondamento em 15 casas decimais
A40: = (Principal Anterior x Índice de Atualização x Fator de Atualização) - Principal Atualizado
C42: arredondamento bancário em 2 casas decimais
A44: Índide de Atualização | D44: Fator de Atualização
A45: = (1 + TR a.m.)Dias/Dias no mês | D45: = (1 + Taxa % a.a.)Dias/(365 ou 366)
A47: (2) Amortização (com arredondamento bancário em 2 casas decimais)
A49: = Principal Atualizado / nº de Parcelas Restantes
A51: (3) Taxa Flat (com arredondamento bancário em 2 casas decimais)
A53: = Liberação x 0,024246%
A54: ou, quando aplicável,
A55: = (Liberação - Devolução de Liberação) x 0,024246%
A57: (4) Remuneração
A58: arredondamento em 15 casas decimais
A60: = (Base de Cálculo x Fator de Remuneração) - Base de Cálculo
A62: arredondamento bancário em 2 casas decimais
A64: Fator de Remuneração
A65: = Produtório dos Fatores Diários SELIC apurados desde a data inicial (inclusive)
A66: até o dia do efetivo pagamento (exclusive)
A67: Fator Diário Selic
A68: = (1+ Selic % a.a.)1/252
A70: arredondamento em 8 casas decimais

Sheet Taxa Flat
A1: % TAXA FLAT | B1: 0.00024246
A3: A atualização da Taxa Flat é calculada pelo Fator SELIC, desde o dia da Liberação (inclusive) até o dia do efetivo pagamento (exclusive).
A5: DATA DE VENCIMENTO | B5: DATA DE PAGAMENTO | C5: EVENTO | D5: VALOR | F5: Data | G5: Fator Diário SELIC *
A6: ='Modelo TR Derivada'!A10 -> 2025-08-08 | B6: =A6 -> 2025-08-08 | C6: LIBERACAO | D6: ='Modelo TR Derivada'!B10 -> 20000000 | F6: 2025-08-08 | G6: 1.00055131
A7: ='Modelo TR Derivada'!A19 -> 2025-09-15 | B7: =A7 -> 2025-09-15 | C7: TAXA FLAT | D7: =round_to_even(D6*$B$1,2) -> 4849.2 | F7: 2025-08-11 | G7: 1.00055131
A8: =A7 -> 2025-09-15 | B8: =A7 -> 2025-09-15 | C8: REMUNERAÇÃO | D8: =round_to_even(D7*ROUND(PRODUCT(G6:G31),15),2)-D7 -> 69.99 | F8: 2025-08-12 | G8: 1.00055131
F9: 2025-08-13 | G9: 1.00055131
F10: 2025-08-14 | G10: 1.00055131
F11: 2025-08-15 | G11: 1.00055131
F12: 2025-08-18 | G12: 1.00055131
F13: 2025-08-19 | G13: 1.00055131
F14: 2025-08-20 | G14: 1.00055131
F15: 2025-08-21 | G15: 1.00055131
F16: 2025-08-22 | G16: 1.00055131
F17: 2025-08-25 | G17: 1.00055131
F18: 2025-08-26 | G18: 1.00055131
F19: 2025-08-27 | G19: 1.00055131
F20: 2025-08-28 | G20: 1.00055131
F21: 2025-08-29 | G21: 1.00055131
F22: 2025-09-01 | G22: 1.00055131
F23: 2025-09-02 | G23: 1.00055131
F24: 2025-09-03 | G24: 1.00055131
F25: 2025-09-04 | G25: 1.00055131
F26: 2025-09-05 | G26: 1.00055131
F27: 2025-09-08 | G27: 1.00055131
F28: 2025-09-09 | G28: 1.00055131
F29: 2025-09-10 | G29: 1.00055131
F30: 2025-09-11 | G30: 1.00055131
F31: 2025-09-12 | G31: 1.00055131
F32: 2025-09-15 | G32: 1.00055131
A34: * | B34: https://www.bcb.gov.br/estabilidadefinanceira/selicdadosdiarios
